fUSD/lending_fUSD_20241223
["ID","MTS","AMOUNT","RATE_DAILY","PERIOD"]
[346449254,1734979834265,-670.28,0.00017249,2]
[346449255,1734979834274,-500.0,0.00017249,2]
[346449256,1734979834284,-500.0,0.00017249,2]
[346449257,1734979834293,-5175.06,0.00017249,2]
[346449258,1734979834303,-500.0,0.00017249,2]
[346449259,1734979834313,-2028.67,0.00017249,2]
[346449260,1734979834323,-1135.32,0.00017249,2]
[346449261,1734979834332,-5610.48,0.00017249,2]
[346449262,1734979834342,-1667.36,0.00017249,2]
[346449263,1734979834351,-749.69,0.00017249,2]
[346449264,1734979834362,-500.0,0.0001725,2]
[346449265,1734979834373,-500.0,0.0001725,2]
[346449266,1734979834382,-364.35889389,0.0001725,2]
[346449267,1734979834392,-500.0,0.0001725,2]
[346449268,1734979834401,-500.0,0.0001725,2]
[346449269,1734979834411,-500.0,0.0001725,2]
[346449270,1734979834420,-500.0,0.0001725,2]
[346449271,1734979834430,-500.0,0.0001725,2]
[346449272,1734979834439,-500.0,0.0001725,2]
[346449273,1734979834448,-500.0,0.0001725,2]
[346449274,1734979834457,-500.0,0.0001725,2]
[346449275,1734979834466,-500.0,0.0001725,2]
[346449276,1734979834476,-500.0,0.0001725,2]
[346449277,1734979834485,-500.0,0.0001725,2]
[346449278,1734979834494,-500.0,0.0001725,2]
[346449279,1734979834504,-525.57,0.0001725,2]
[346449280,1734979834513,-500.0,0.0001725,2]
[346449281,1734979834523,-1808.72,0.0001725,2]
[346449282,1734979834533,-500.0,0.0001725,2]
[346449283,1734979834543,-500.0,0.0001725,2]
[346449284,1734979834552,-500.0,0.0001725,2]
[346449285,1734979834562,-500.0,0.0001725,2]
[346449286,1734979834572,-500.0,0.0001725,2]
[346449287,1734979834582,-500.0,0.0001725,2]
[346449288,1734979834593,-500.0,0.0001725,2]
[346449289,1734979834603,-500.0,0.0001725,2]
[346449290,1734979834614,-500.0,0.0001725,2]
[346449291,1734979834625,-922.03,0.0001725,2]
[346449292,1734979834637,-500.0,0.0001725,2]
[346449293,1734979834647,-500.0,0.0001725,2]
[346449294,1734979834658,-500.0,0.0001725,2]
[346449295,1734979834669,-666.2,0.0001725,2]
[346449296,1734979834680,-918.09,0.0001725,2]
[346449297,1734979834691,-699.65,0.0001725,2]
[346449298,1734979834701,-989.73,0.0001725,2]
[346449299,1734979834712,-719.37,0.0001725,2]
[346449300,1734979834723,-500.0,0.0001725,2]
[346449301,1734979834736,-1017.66,0.0001725,2]
[346449302,1734979834747,-2889.86,0.0001725,2]
[346449303,1734979834758,-1170.6,0.0001725,2]
[346449304,1734979834768,-1438.34,0.0001725,2]
[346449305,1734979834779,-812.67,0.0001725,2]
[346449306,1734979834789,-1580.02,0.0001725,2]
[346449307,1734979834799,-520.63,0.0001725,2]
[346449308,1734979834810,-500.0,0.0001725,2]
[346449309,1734979834821,-2468.08,0.0001725,2]
[346449310,1734979834832,-791.87,0.0001725,2]
[346449311,1734979834843,-1409.68,0.0001725,2]
[346449312,1734979834854,-3906.05,0.0001725,2]
[346449313,1734979834865,-500.0,0.0001725,2]
[346449314,1734979834876,-19921.1,0.0001725,2]
[346449315,1734979834887,-1075.07,0.0001725,2]
[346449316,1734979834897,-1611.32,0.0001725,2]
[346449317,1734979834908,-500.0,0.0001725,2]
[346449318,1734979834919,-2935.22,0.0001725,2]
[346449319,1734979834930,-1565.69,0.0001725,2]
[346449320,1734979834942,-2622.28,0.0001725,2]
[346449321,1734979834952,-1081.32,0.0001725,2]
[346449322,1734979834963,-1955.83,0.0001725,2]
[346449323,1734979834973,-1441.88,0.0001725,2]
[346449324,1734979834983,-1750.93,0.0001725,2]
[346449325,1734979834993,-634.75,0.0001725,2]
[346449326,1734979835004,-3592.0,0.0001725,2]
[346449327,1734979835015,-500.0,0.0001725,2]
[346449328,1734979835025,-1001.15,0.0001725,2]
[346449329,1734979835036,-500.0,0.0001725,2]
[346449330,1734979835047,-1569.58,0.0001725,2]
[346449331,1734979835058,-1049.39,0.0001725,2]
[346449332,1734979835068,-1218.79,0.0001725,2]
[346449333,1734979835079,-500.0,0.0001725,2]
[346449334,1734979835090,-2571.7,0.0001725,2]
[346449335,1734979835100,-503.44171967,0.0001725,2]
[346449336,1734979835115,-2298.48,0.0001725,2]
[346449337,1734979835126,-509.06,0.0001725,2]
[346449338,1734979835137,-2587.77,0.0001725,2]
[346449339,1734979835148,-2570.33,0.0001725,2]
[346449340,1734979835160,-3031.49,0.0001725,2]
[346449341,1734979835171,-1231.89,0.0001725,2]
[346449342,1734979835182,-1868.4,0.0001725,2]
[346449343,1734979835195,-1640.96,0.0001725,2]
[346449344,1734979835207,-500.0,0.0001725,2]
[346449345,1734979835217,-4544.17,0.0001725,2]
[346449346,1734979835229,-1859.53,0.0001725,2]
[346449347,1734979835240,-6633.3,0.0001725,2]
[346449348,1734979835252,-3103.99,0.0001725,2]
[346449349,1734979835262,-512.62,0.0001725,2]
[346449350,1734979835273,-1124.03,0.0001725,2]
[346449351,1734979835284,-3102.85,0.0001725,2]
[346449352,1734979835296,-2882.42,0.0001725,2]
[346449353,1734979835307,-500.0,0.0001725,2]
[346449354,1734979835317,-243.58520973,0.0001725,2]
[346449355,1734979835328,-5478.14,0.0001725,2]
[346449356,1734979835339,-1467.6,0.0001725,2]
[346449357,1734979835350,-1076.83,0.0001725,2]
[346449358,1734979835362,-5742.8,0.0001725,2]
[346449359,1734979835379,-584.11,0.0001725,2]
[346449360,1734979835390,-752.84,0.0001725,2]
[346449361,1734979835401,-27072.74,0.0001725,2]
[346449362,1734979835412,-500.0,0.0001725,2]
[346449363,1734979835424,-423.96912288,0.0001725,2]
[346449364,1734979835434,-1711.56,0.0001725,2]
[346449365,1734979835464,-500.0,0.0001725,2]
[346449366,1734979835475,-3745.84,0.0001725,2]
[346449367,1734979835486,-1549.09,0.0001725,2]
[346449368,1734979835498,-500.0,0.00017251,2]
[346449369,1734979835510,-500.0,0.00017251,2]
[346449370,1734979835520,-500.0,0.00017251,2]
[346449371,1734979835531,-500.0,0.00017251,2]
[346449372,1734979835542,-500.0,0.00017251,2]
[346449373,1734979835554,-500.0,0.00017251,2]
[346449374,1734979835564,-500.0,0.00017251,2]
[346449375,1734979835575,-500.0,0.00017251,2]
[346449376,1734979835586,-500.0,0.00017251,2]
[346449377,1734979835597,-500.0,0.00017251,2]
[346449378,1734979835607,-500.0,0.00017251,2]
[346449379,1734979835618,-500.0,0.00017251,2]
[346449380,1734979835629,-500.0,0.00017251,2]
[346449381,1734979835640,-500.0,0.00017251,2]
[346449382,1734979835651,-500.0,0.00017251,2]
[346449383,1734979835663,-500.0,0.00017251,2]
[346449384,1734979835674,-512.39151128,0.00017251,2]
[346449385,1734979835685,-500.0,0.00017251,2]
[346449386,1734979835695,-500.0,0.00017251,2]
[346449387,1734979835706,-503.94552676,0.00017251,2]
[346449388,1734979835718,-500.0,0.00017251,2]
[346449389,1734979835728,-500.0,0.00017251,2]
[346449390,1734979835738,-500.0,0.00017251,2]
[346449391,1734979835749,-700.0,0.00017251,2]
[346449392,1734979835759,-500.0,0.00017251,2]
[346449393,1734979835770,-1190.86,0.00017251,2]
[346449394,1734979835780,-514.14034008,0.00017251,2]
[346449395,1734979835790,-500.0,0.00017251,2]
[346449396,1734979835801,-500.0,0.00017251,2]
[346449397,1734979835812,-500.0,0.00017251,2]
[346449398,1734979835822,-500.0,0.00017251,2]
[346449399,1734979835833,-501.24618573,0.00017251,2]
[346449400,1734979835844,-1605.17,0.00017251,2]
[346449401,1734979835854,-607.88,0.00017251,2]
[346449402,1734979835865,-500.0,0.00017251,2]
[346449403,1734979835876,-500.0,0.00017251,2]
[346449404,1734979835886,-500.0,0.00017251,2]
[346449405,1734979835897,-500.0,0.00017251,2]
[346449406,1734979835908,-500.0,0.00017251,2]
[346449407,1734979835919,-500.0,0.00017251,2]
[346449408,1734979835929,-500.0,0.00017251,2]
[346449409,1734979835939,-500.0,0.00017251,2]
[346449410,1734979835950,-500.0,0.00017251,2]
[346449411,1734979835960,-500.0,0.00017251,2]
[346449412,1734979835970,-1122.28,0.00017251,2]
[346449413,1734979835980,-746.16,0.00017251,2]
[346449414,1734979835990,-500.0,0.00017251,2]
[346449415,1734979836000,-500.0,0.00017251,2]
[346449416,1734979836010,-500.0,0.00017251,2]
[346449417,1734979836020,-500.0,0.00017251,2]
[346449418,1734979836030,-500.0,0.00017251,2]
[346449419,1734979836040,-500.0,0.00017251,2]
[346449420,1734979836050,-500.0,0.00017251,2]
[346449421,1734979836060,-1060.16,0.00017251,2]
[346449422,1734979836070,-500.0,0.00017251,2]
[346449423,1734979836080,-500.0,0.00017251,2]
[346449424,1734979836090,-500.0,0.00017251,2]
[346449425,1734979836100,-500.0,0.00017251,2]
[346449426,1734979836111,-500.0,0.00017251,2]
[346449427,1734979836121,-501.55,0.00017251,2]
[346449428,1734979836133,-500.0,0.00017251,2]
[346449429,1734979836143,-500.0,0.00017251,2]
[346449430,1734979836154,-980.06,0.00017251,2]
[346449431,1734979836164,-282.81836841,0.00017251,2]
[346449432,1734979836175,-885.03,0.00017251,2]
[346449433,1734979836184,-1076.04,0.00017251,2]
[346449434,1734979836194,-500.0,0.00017251,2]
[346449435,1734979836205,-594.31,0.00017251,2]
[346449436,1734979836216,-500.0,0.00017251,2]
[346449437,1734979836226,-500.0,0.00017251,2]
[346449438,1734979836236,-1441.46,0.00017251,2]
[346449439,1734979836247,-770.36,0.00017251,2]
[346449440,1734979836257,-673.97,0.00017251,2]
[346449441,1734979836266,-1165.51,0.00017251,2]
[346449442,1734979836276,-500.0,0.00017251,2]
[346449443,1734979836285,-500.0,0.00017251,2]
[346449444,1734979836295,-500.0,0.00017251,2]
[346449445,1734979836304,-515.84,0.00017251,2]
[346449446,1734979836315,-500.0,0.00017251,2]
[346449447,1734979836324,-525.08,0.00017251,2]
[346449448,1734979836333,-1383.86,0.00017251,2]
[346449449,1734979836343,-500.0,0.00017251,2]
[346449450,1734979836353,-500.0,0.00017251,2]
[346449451,1734979836362,-500.0,0.00017251,2]
[346449452,1734979836371,-500.0,0.00017251,2]
[346449453,1734979836381,-500.0,0.00017251,2]
[346449454,1734979836391,-500.0,0.00017251,2]
[346449455,1734979836400,-500.0,0.00017251,2]
[346449456,1734979836410,-500.0,0.00017251,2]
[346449457,1734979836420,-500.0,0.00017251,2]
[346449458,1734979836430,-500.0,0.00017251,2]
[346449459,1734979836439,-500.0,0.00017251,2]
[346449460,1734979836449,-500.0,0.00017251,2]
[346449461,1734979836459,-500.0,0.00017251,2]
[346449462,1734979836469,-280.40740107,0.00017251,2]
[346449463,1734979836479,-500.0,0.00017251,2]
[346449464,1734979836488,-500.0,0.00017251,2]
[346449465,1734979836498,-500.0,0.00017251,2]
[346449466,1734979836508,-501.50900195,0.00017251,2]
[346449467,1734979836518,-500.0,0.00017251,2]
[346449468,1734979836528,-500.0,0.00017251,2]
[346449469,1734979836538,-500.0,0.00017251,2]
[346449470,1734979836548,-500.0,0.00017251,2]
[346449471,1734979836557,-500.0,0.00017251,2]
[346449472,1734979836567,-500.0,0.00017251,2]
[346449473,1734979836576,-990.35,0.00017251,2]
[346449474,1734979836586,-500.0,0.00017251,2]
[346449475,1734979836595,-611.78,0.00017251,2]
[346449476,1734979836604,-500.0,0.00017251,2]
[346449477,1734979836614,-500.0,0.00017251,2]
[346449478,1734979836623,-500.0,0.00017251,2]
[346449479,1734979836632,-500.0,0.00017251,2]
[346449480,1734979836641,-500.0,0.00017251,2]
[346449481,1734979836650,-500.0,0.00017251,2]
[346449482,1734979836660,-559.16,0.00017251,2]
[346449483,1734979836670,-500.0,0.00017251,2]
[346449484,1734979836679,-500.0,0.00017251,2]
[346449485,1734979836688,-500.0,0.00017251,2]
[346449486,1734979836697,-500.0,0.00017251,2]
[346449487,1734979836706,-500.0,0.00017251,2]
[346449488,1734979836715,-500.0,0.00017251,2]
[346449489,1734979836724,-500.0,0.00017251,2]
[346449490,1734979836733,-500.0,0.00017251,2]
[346449491,1734979836743,-529.41,0.00017251,2]
[346449492,1734979836752,-500.0,0.00017251,2]
[346449493,1734979836761,-1410.5,0.00017251,2]
[346449494,1734979836770,-500.0,0.00017251,2]
[346449495,1734979836779,-698.35,0.00017251,2]
[346449496,1734979836789,-500.0,0.00017251,2]
[346449497,1734979836798,-500.0,0.00017251,2]
[346449498,1734979836807,-538.84112499,0.00017251,2]
[346449499,1734979836817,-500.0,0.00017251,2]
[346449500,1734979836825,-500.0,0.00017251,2]
[346449501,1734979836835,-500.0,0.00017251,2]
[346449502,1734979836844,-1043.85,0.00017251,2]
[346449503,1734979836853,-500.0,0.00017251,2]
[346449504,1734979836862,-500.0,0.00017251,2]
[346449505,1734979836871,-973.13,0.00017251,2]
[346449506,1734979836881,-500.0,0.00017251,2]
[346449507,1734979836890,-886.27,0.00017251,2]
[346449508,1734979836899,-500.0,0.00017251,2]
[346449509,1734979836908,-500.0,0.00017251,2]
[346449510,1734979836917,-500.0,0.00017251,2]
[346449511,1734979836926,-500.0,0.00017251,2]
[346449512,1734979836935,-313.34127429,0.00017251,2]
[346449513,1734979836945,-550.48,0.00017252,2]
[346449514,1734979836954,-500.0,0.00017252,2]
[346449515,1734979836963,-1002.51,0.00017252,2]
[346449516,1734979836973,-500.0,0.00017252,2]
[346449517,1734979836983,-930.07,0.00017252,2]
[346449518,1734979836992,-500.0,0.00017252,2]
[346449519,1734979837001,-500.0,0.00017252,2]
[346449520,1734979837011,-500.0,0.00017252,2]
[346449521,1734979837021,-500.0,0.00017252,2]
[346449522,1734979837031,-500.0,0.00017252,2]
[346449523,1734979837040,-500.0,0.00017252,2]
[346449524,1734979837049,-324.0,0.00017252,2]
[346449525,1734979837058,-1299.4,0.00017252,2]
[346449526,1734979837068,-322.58858881,0.00017252,2]
[346449527,1734979837077,-500.0,0.00017252,2]
[346449528,1734979837086,-500.0,0.00017252,2]
[346449529,1734979837095,-500.0,0.00017252,2]
[346449530,1734979837104,-500.0,0.00017252,2]
[346449531,1734979837118,-500.0,0.00017252,2]
[346449532,1734979837127,-500.0,0.00017252,2]
[346449533,1734979837136,-500.0,0.00017252,2]
[346449534,1734979837145,-500.0,0.00017252,2]
[346449535,1734979837157,-500.0,0.00017252,2]
[346449536,1734979837167,-500.0,0.00017252,2]
[346449537,1734979837176,-657.82,0.00017252,2]
[346449538,1734979837185,-500.0,0.00017252,2]
[346449539,1734979837197,-500.0,0.00017252,2]
[346449540,1734979837207,-656.85,0.00017252,2]
[346449541,1734979837216,-500.0,0.00017252,2]
[346449542,1734979837226,-500.0,0.00017252,2]
[346449543,1734979837235,-500.0,0.00017252,2]
[346449544,1734979837245,-1034.59,0.00017252,2]
[346449545,1734979837254,-500.0,0.00017252,2]
[346449546,1734979837263,-500.0,0.00017252,2]
[346449547,1734979837276,-1707.26,0.00017252,2]
[346449548,1734979837286,-500.0,0.00017252,2]
[346449549,1734979837296,-500.0,0.00017252,2]
[346449550,1734979837305,-500.0,0.00017252,2]
[346449551,1734979837314,-500.0,0.00017252,2]
[346449552,1734979837324,-500.0,0.00017252,2]
[346449553,1734979837334,-500.0,0.00017252,2]
[346449554,1734979837344,-500.0,0.00017252,2]
[346449555,1734979837353,-500.0,0.00017252,2]
[346449556,1734979837363,-500.0,0.00017252,2]
[346449557,1734979837373,-161.33092395,0.00017252,2]
[346449558,1734979837386,-1312.32,0.00017252,2]
[346449559,1734979837395,-500.0,0.00017252,2]
[346449560,1734979837405,-500.0,0.00017252,2]
[346449561,1734979837416,-1337.01,0.00017252,2]
[346449562,1734979837425,-169.04605173,0.00017252,2]
[346449563,1734979837435,-1326.17,0.00017252,2]
[346449564,1734979837444,-500.0,0.00017252,2]
[346449565,1734979837453,-500.0,0.00017252,2]
[346449566,1734979837463,-1126.36,0.00017252,2]
[346449567,1734979837472,-500.0,0.00017252,2]
[346449568,1734979837484,-500.0,0.00017252,2]
[346449569,1734979837494,-500.0,0.00017252,2]
[346449570,1734979837507,-505.19,0.00017252,2]
[346449571,1734979837519,-500.0,0.00017252,2]
[346449572,1734979837531,-500.0,0.00017252,2]
[346449573,1734979837543,-1097.76,0.00017252,2]
[346449574,1734979837554,-913.72,0.00017252,2]
[346449575,1734979837564,-991.63,0.00017252,2]
[346449576,1734979837574,-1194.41,0.00017252,2]
[346449577,1734979837585,-500.0,0.00017252,2]
[346449578,1734979837596,-500.0,0.00017252,2]
[346449579,1734979837608,-1849.53,0.00017252,2]
[346449580,1734979837620,-500.0,0.00017252,2]
[346449581,1734979837631,-1116.49,0.00017252,2]
[346449582,1734979837642,-1269.46,0.00017252,2]
[346449583,1734979837653,-565.77,0.00017252,2]
[346449584,1734979837664,-1061.35,0.00017252,2]
[346449585,1734979837675,-1331.93,0.00017252,2]
[346449586,1734979837687,-941.61,0.00017252,2]
[346449587,1734979837698,-1688.43,0.00017252,2]
[346449588,1734979837708,-1384.34,0.00017252,2]
[346449589,1734979837719,-500.0,0.00017252,2]
[346449590,1734979837730,-500.0,0.00017252,2]
[346449591,1734979837741,-2415.23,0.00017252,2]
[346449592,1734979837752,-500.0,0.00017252,2]
[346449593,1734979837762,-847.82,0.00017252,2]
[346449594,1734979837773,-500.0,0.00017252,2]
[346449595,1734979837784,-525.33,0.00017252,2]
[346449596,1734979837797,-500.0,0.00017252,2]
[346449597,1734979837808,-2584.43,0.00017252,2]
[346449598,1734979837819,-500.0,0.00017252,2]
[346449599,1734979837830,-954.37,0.00017252,2]
[346449600,1734979837841,-779.23,0.00017252,2]
[346449601,1734979837853,-500.0,0.00017252,2]
[346449602,1734979837864,-500.0,0.00017252,2]
[346449603,1734979837875,-1500.51,0.00017252,2]
[346449604,1734979837887,-601.33,0.00017252,2]
[346449605,1734979837898,-2726.31,0.00017252,2]
[346449606,1734979837909,-1150.67,0.00017252,2]
[346449607,1734979837921,-500.0,0.00017252,2]
[346449608,1734979837932,-1383.3,0.00017252,2]
[346449609,1734979837943,-500.0,0.00017252,2]
[346449610,1734979837955,-977.48,0.00017252,2]
[346449611,1734979837966,-805.42,0.00017252,2]
[346449612,1734979837977,-1285.22,0.00017252,2]
[346449613,1734979837990,-500.0,0.00017252,2]
[346449615,1734979838000,-1227.66,0.00017252,2]
[346449617,1734979838011,-500.0,0.00017252,2]
[346449619,1734979838022,-500.0,0.00017252,2]
[346449621,1734979838034,-1021.62,0.00017252,2]
[346449622,1734979838045,-2319.09,0.00017252,2]
[346449623,1734979838057,-500.0,0.00017253,2]
[346449624,1734979838068,-500.0,0.00017253,2]
[346449625,1734979838079,-500.0,0.00017253,2]
[346449626,1734979838090,-500.0,0.00017253,2]
[346449627,1734979838102,-500.0,0.00017253,2]
[346449628,1734979838115,-500.0,0.00017253,2]
[346449629,1734979838127,-612.97,0.00017253,2]
[346449630,1734979838143,-150.0,0.0001726,2]
[346449631,1734979838154,-150.0,0.0001726,2]
[346449632,1734979838165,-2315.58512871,0.00017279,2]
[346449633,1734979838175,-302.43229845,0.00017279,2]
[346449634,1734979838185,-150.0,0.00017306,2]
[346449635,1734979838196,-150.0,0.00017337,2]
[346449636,1734979838207,-2315.58512871,0.00017409,2]
[346449639,1734979838217,-302.43229845,0.00017409,2]
[346449642,1734979838227,-150.0,0.00017414,2]
[346449644,1734979838239,-500.0,0.00017455,2]
[346449646,1734979838249,-150.0,0.0001749,2]
[346449648,1734979838260,-150.0,0.0001749,2]
[346449650,1734979838273,-2507.95,0.00017522,2]
[346449653,1734979838286,-1816.42,0.00017522,2]
[346449655,1734979838298,-1517.1,0.00017522,2]
[346449657,1734979838308,-3079.77,0.00017522,2]
[346449658,1734979838317,-500.0,0.00017522,2]
[346449659,1734979838327,-4907.6,0.00017522,2]
[346449660,1734979838337,-2345.72,0.00017522,2]
[346449661,1734979838347,-2757.74,0.00017522,2]
[346449662,1734979838358,-4857.11,0.00017522,2]
[346449663,1734979838369,-3135.85,0.00017522,2]
[346449664,1734979838381,-2385.18,0.00017522,2]
[346449665,1734979838394,-16534.2,0.00017522,2]
[346449666,1734979838408,-2067.54,0.00017522,2]
[346449667,1734979838420,-500.0,0.00017523,2]
[346449668,1734979838430,-500.0,0.00017523,2]
[346449669,1734979838440,-500.0,0.00017523,2]
[346449670,1734979838451,-500.0,0.00017523,2]
[346449671,1734979838461,-1382.62,0.00017523,2]
[346449672,1734979838471,-500.0,0.00017523,2]
[346449673,1734979838482,-500.0,0.00017523,2]
[346449674,1734979838493,-252.77851295,0.00017523,2]
[346449675,1734979838504,-633.94243511,0.00017523,2]
[346449676,1734979838514,-500.0,0.00017523,2]
[346449677,1734979838525,-500.0,0.00017523,2]
[346449678,1734979838536,-500.0,0.00017523,2]
[346449679,1734979838547,-500.0,0.00017523,2]
[346449680,1734979838557,-500.0,0.00017523,2]
[346449681,1734979838567,-1058.85,0.00017523,2]
[346449682,1734979838578,-664.24,0.00017523,2]
[346449683,1734979838588,-938.84,0.00017523,2]
[346449684,1734979838598,-3051.96,0.00017523,2]
[346449685,1734979838608,-13883.08,0.00017523,2]
[346449686,1734979838618,-1423.1,0.00017523,2]
[346449687,1734979838628,-1996.09,0.00017523,2]
[346449688,1734979838638,-564.14,0.00017523,2]
[346449689,1734979838648,-2073.16,0.00017523,2]
[346449690,1734979838659,-500.0,0.00017523,2]
[346449691,1734979838669,-2686.72,0.00017523,2]
[346449693,1734979838679,-500.0,0.00017523,2]
[346449694,1734979838690,-500.0,0.00017523,2]
[346449695,1734979838701,-1339.59,0.00017523,2]
[346449696,1734979838712,-1291.94,0.00017523,2]
[346449697,1734979838722,-500.0,0.00017523,2]
[346449698,1734979838732,-4276.01,0.00017523,2]
[346449700,1734979838744,-500.0,0.00017523,2]
[346449702,1734979838755,-1676.7,0.00017523,2]
[346449704,1734979838766,-500.0,0.00017523,2]
[346449705,1734979838777,-2089.19,0.00017523,2]
[346449706,1734979838788,-1399.15,0.00017523,2]
[346449707,1734979838798,-1617.15,0.00017523,2]
[346449708,1734979838810,-2940.1,0.00017523,2]
[346449709,1734979838820,-500.0,0.00017523,2]
[346449710,1734979838831,-2813.81,0.00017523,2]
[346449711,1734979838842,-777.68,0.00017523,2]
[346449713,1734979838860,-3247.15,0.00017523,2]
[346449714,1734979838871,-1000.42,0.00017523,2]
[346449715,1734979838881,-2384.44,0.00017523,2]
[346449716,1734979838891,-1948.37,0.00017523,2]
[346449717,1734979838902,-1086.16,0.00017523,2]
[346449718,1734979838912,-3176.16,0.00017523,2]
[346449719,1734979838923,-4837.04,0.00017523,2]
[346449720,1734979838933,-537.13,0.00017523,2]
[346449722,1734979838943,-5610.09,0.00017523,2]
[346449724,1734979838954,-8446.49,0.00017523,2]
[346449725,1734979838964,-943.49,0.00017523,2]
[346449726,1734979838974,-1249.67,0.00017523,2]
[346449727,1734979838984,-3008.71,0.00017523,2]
[346449728,1734979838995,-1773.91,0.00017523,2]
[346449729,1734979839005,-1318.68,0.00017523,2]
[346449730,1734979839016,-11592.63,0.00017523,2]
[346449731,1734979839026,-9616.25,0.00017523,2]
[346449732,1734979839037,-984.87,0.00017523,2]
[346449733,1734979839047,-2439.07,0.00017523,2]
[346449734,1734979839057,-8461.3,0.00017523,2]
[346449735,1734979839067,-983.52,0.00017523,2]
[346449736,1734979839078,-4795.02,0.00017523,2]
[346449737,1734979839088,-1526.14,0.00017523,2]
[346449738,1734979839099,-1678.48,0.00017523,2]
[346449739,1734979839110,-948.22,0.00017523,2]
[346449740,1734979839120,-2366.48,0.00017523,2]
[346449741,1734979839131,-500.0,0.00017523,2]
[346449742,1734979839145,-529.75,0.00017523,2]
[346449743,1734979839158,-3740.43,0.00017523,2]
[346449744,1734979839168,-3122.54,0.00017523,2]
[346449745,1734979839178,-2842.24,0.00017523,2]
[346449746,1734979839189,-2232.99,0.00017523,2]
[346449747,1734979839199,-6476.28,0.00017523,2]
[346449748,1734979839210,-1358.66,0.00017523,2]
[346449749,1734979839220,-1751.19,0.00017523,2]
[346449750,1734979839230,-8069.68,0.00017523,2]
[346449751,1734979839240,-500.0,0.00017523,2]
[346449752,1734979839250,-3157.81,0.00017523,2]
[346449753,1734979839260,-2961.91,0.00017523,2]
[346449754,1734979839270,-787.34,0.00017523,2]
[346449755,1734979839280,-2817.16,0.00017523,2]
[346449756,1734979839290,-3884.97,0.00017523,2]
[346449757,1734979839300,-10509.51,0.00017523,2]
[346449758,1734979839310,-2353.68,0.00017523,2]
[346449759,1734979839320,-1085.02,0.00017523,2]
[346449760,1734979839330,-4817.33,0.00017523,2]
[346449761,1734979839340,-500.0,0.00017523,2]
[346449762,1734979839350,-1183.72,0.00017523,2]
[346449763,1734979839360,-1916.98,0.00017523,2]
[346449764,1734979839370,-500.0,0.00017523,2]
[346449765,1734979839381,-1379.05,0.00017523,2]
[346449766,1734979839391,-2330.74,0.00017523,2]
[346449767,1734979839401,-500.94,0.00017523,2]
[346449768,1734979839411,-15067.45,0.00017523,2]
[346449769,1734979839421,-500.0,0.00017523,2]
[346449770,1734979839432,-826.73,0.00017523,2]
[346449771,1734979839442,-7000.75,0.00017523,2]
[346449772,1734979839452,-1654.85,0.00017523,2]
[346449773,1734979839462,-3790.38,0.00017523,2]
[346449774,1734979839472,-2639.73,0.00017523,2]
[346449775,1734979839482,-1530.37,0.00017523,2]
[346449776,1734979839492,-2525.52,0.00017523,2]